bitfinex/quotes_SOLUSD_20240716
["timestamp","ask_amount","ask_price","bid_price","bid_amount"]
[1721143990079,45.0,158.36,158.28,15.7942]
[1721143990277,6.3162,158.33,158.28,22.1121]
[1721143990594,6.3162,158.33,158.29,6.3174]
[1721143990595,1.57944187,158.32,158.29,6.3174]
[1721143990760,1.57944187,158.32,158.28,22.112]
[1721143990966,7.89604187,158.32,158.27,6.3182]
[1721143991295,7.89604187,158.32,158.25,15.7972]
[1721143991296,6.3167,158.31,158.26,6.3185]
[1721143991590,6.3167,158.31,158.25,15.7972]
[1721143991591,1.57958632,158.3,158.27,6.318]
[1721143991785,1.5795658,158.29,158.27,6.318]
[1721143991986,6.316,158.33,158.28,6.3179]
[1721143992290,45.0,158.36,158.31,6.3167]
[1721143992291,1.57936286,158.32,158.31,6.3167]
[1721143992595,6.3154,158.35,158.31,6.3167]
[1721143992771,7.89483987,158.34,158.29,15.7932]
[1721143992968,6.3159,158.33,158.29,15.7932]
[1721143993170,1.57926988,158.32,158.29,15.7932]
[1721143993493,7.89436988,158.35,158.3,6.317]
[1721143993691,1.57926988,158.35,158.32,6.3162]
[1721143993898,1.57926988,158.35,158.33,6.3158]
[1721143994193,1.57926988,158.35,158.32,6.3162]
[1721143994497,7.893686,158.36,158.32,6.3162]
[1721143994694,1.578986,158.36,158.33,15.7889]
[1721143994904,1.57898977,158.38,158.34,6.3154]
[1721143995200,6.3143,158.37,158.33,22.1047]
[1721143995396,1.57882939,158.37,158.33,15.7889]
[1721143995695,1.57882939,158.37,158.29,22.1105]
[1721143995877,1.57882939,158.37,158.26,15.7965]
[1721143996071,15.7873,158.36,158.26,15.7965]
[1721143996291,46.5794991,158.35,158.26,15.7965]
[1721143996698,6.3164,158.32,158.27,6.3182]
[1721143997115,6.3168,158.31,158.26,22.1151]
[1721143997311,1.57950067,158.3,158.28,6.3178]
[1721143997521,45.0,158.35,158.28,6.3178]
[1721143997522,7.89559018,158.32,158.28,6.3178]
[1721143997696,7.89559018,158.32,158.27,6.3182]
[1721143998309,7.89559018,158.32,158.28,6.3178]
[1721143998497,45.0,158.35,158.29,6.3173]
[1721143998498,1.57942452,158.34,158.29,6.3173]
[1721143998696,1.57942452,158.34,158.26,15.7965]
[1721143998899,6.3172,158.3,158.26,15.7965]
[1721143999106,1.57952663,158.29,158.26,22.1149]
[1721143999286,45.0,158.35,158.26,22.1149]
[1721143999287,1.57952663,158.34,158.26,15.7965]
[1721143999483,6.3163,158.32,158.27,6.3182]
[1721143999691,6.3167,158.31,158.27,6.3182]
[1721143999989,1.57945608,158.3,158.27,6.3182]
[1721144000207,1.57945608,158.3,158.26,15.7965]
[1721144000598,1.57945608,158.3,158.27,6.3182]
[1721144000910,6.3163,158.32,158.27,6.3182]
[1721144001115,45.0,158.35,158.26,22.1151]
[1721144001116,6.3167,158.31,158.26,22.1151]
[1721144001419,1.57941955,158.3,158.23,15.7992]
[1721144001609,1.58000501,158.29,158.2,15.8027]
[1721144001791,6.3192,158.25,158.2,22.1238]
[1721144002119,6.3207,158.21,158.16,22.1284]
[1721144002419,1.58045602,158.2,158.16,22.1284]
[1721144002596,1.58045602,158.2,158.17,6.3222]
[1721144003014,7.90079626,158.22,158.17,6.3222]
[1721144003228,7.90079626,158.22,158.16,15.8058]
[1721144003229,1.58036193,158.25,158.18,6.3216]
[1721144003391,1.58036193,158.25,158.16,15.8058]
[1721144003392,46.58036193,158.25,158.19,6.3214]
[1721144003590,1.58036193,158.25,158.13,15.2035]
[1721144003788,15.7943,158.29,158.13,15.2035]
[1721144003789,6.3187,158.26,158.21,6.3206]
[1721144004014,1.57998727,158.25,158.21,6.3206]
[1721144004313,1.5799287,158.26,158.2,15.8023]
[1721144004627,1.57987624,158.29,158.16,50.603]
[1721144004790,1.57987624,158.29,158.17,65.0]
[1721144005492,6.318,158.28,158.23,6.3198]
[1721144005697,1.57969678,158.27,158.22,15.8002]
[1721144005894,1.57969678,158.27,158.22,22.1204]
[1721144005895,6.3184,158.27,158.22,22.1204]
[1721144006102,6.318,158.28,158.23,6.3198]
[1721144006423,7.8980267,158.27,158.23,6.3198]
[1721144006616,1.57976064,158.29,158.23,6.3198]
[1721144006812,1.57976064,158.29,158.24,6.3193]
[1721144007020,6.3175,158.29,158.24,6.3193]
[1721144007201,6.3172,158.3,158.24,15.798]
[1721144007525,1.57938204,158.33,158.26,15.7963]
[1721144007697,1.57927481,158.33,158.29,6.3173]
[1721144007899,1.57927481,158.34,158.29,15.7936]
[1721144008112,6.3155,158.34,158.3,6.317]
[1721144008321,6.3163,158.32,158.26,15.7965]
[1721144008520,6.3152,158.35,158.3,6.317]
[1721144008699,7.89420464,158.35,158.3,7.58020371]
[1721144008898,7.89450443,158.34,158.29,22.111]
[1721144009094,6.3155,158.34,158.29,22.111]
[1721144009312,6.3159,158.33,158.29,15.7936]
[1721144009515,6.3156,158.34,158.29,22.111]
[1721144009698,1.57907066,158.37,158.29,15.7936]
[1721144009902,7.89367066,158.37,158.31,6.3164]
[1721144010212,6.3143,158.37,158.33,6.3157]
[1721144010530,6.314,158.38,158.31,15.7911]
[1721144010700,1.57865895,158.37,158.31,15.7911]
[1721144010903,1.57880474,158.4,158.31,22.1077]
[1721144011110,6.314,158.38,158.33,6.3155]
[1721144011313,1.57882904,158.39,158.35,6.315]
[1721144011545,1.57851937,158.39,158.33,15.7891]
[1721144011833,1.57857068,158.38,158.31,6.3166]
[1721144012002,33.7516381,158.42,158.3,23.0124]
[1721144012003,1.57876942,158.41,158.3,23.0124]
[1721144012196,7.89176942,158.41,158.31,45.0]
[1721144012601,6.3123,158.42,158.37,6.3143]
[1721144012805,7.88998407,158.44,158.38,7.41957561]
[1721144013038,7.88998407,158.44,158.38,7.41977561]
[1721144013200,1.57796869,158.47,158.4,15.7828]
[1721144013399,2.42477431,158.48,158.41,1.10576615]
[1721144013704,6.3116,158.44,158.4,15.7828]
[1721144013927,6.3111,158.45,158.4,15.7828]
[1721144014110,7.88964245,158.44,158.39,16.6578]
[1721144014311,1.57804268,158.43,158.37,15.7855]
[1721144014602,2.42511638,158.48,158.37,15.7855]
[1721144015022,6.311,158.46,158.4,6.3129]
[1721144015230,1.57798261,158.45,158.4,6.3129]
[1721144015431,6.3108,158.46,158.4,6.3129]
[1721144015635,1.57794855,158.45,158.4,6.3129]
[1721144016135,8.73532225,158.48,158.41,15.7808]
[1721144016632,0.8470737,158.48,158.45,6.3108]
[1721144016803,0.8470737,158.48,158.44,15.7787]
[1721144017128,0.8470737,158.48,158.44,22.09]
[1721144017307,2.42465644,158.48,158.44,15.7787]
[1721144017507,8.73465644,158.48,158.41,22.0939]
[1721144017819,2.42465644,158.48,158.41,15.7816]
[1721144018017,2.42465644,158.48,158.36,48.2297]
[1721144018018,6.3116,158.44,158.39,6.3135]
[1721144018210,1.57809156,158.43,158.38,15.7847]
[1721144018415,6.3124,158.42,158.36,16.6578]
[1721144018621,6.3117,158.44,158.38,6.3138]
[1721144018811,7.89019191,158.43,158.37,22.099]
[1721144019021,6.5815,158.47,158.34,6.3153]
[1721144019022,1.57826011,158.42,158.34,6.3153]
[1721144019330,6.3117,158.44,158.38,6.3135]
[1721144019508,1.57859128,158.45,158.41,6.3123]
[1721144019915,1.57859128,158.45,158.39,15.7835]
[1721144020120,1.57859128,158.45,158.36,6.3143]
[1721144020427,6.3122,158.43,158.37,15.7857]
[1721144020619,1.57859128,158.45,158.39,6.3134]
[1721144020620,7.88999128,158.45,158.39,6.3134]
[1721144022315,0.8470737,158.48,158.41,22.38565094]
[1721144022639,2.4246566,158.48,158.42,6.3122]
[1721144022930,2.4246566,158.48,158.37,31.57]
[1721144022931,47.0246566,158.48,158.36,15.1184]
[1721144023136,6.3138,158.39,158.34,6.3154]
[1721144023508,1.57849173,158.42,158.34,6.3154]
[1721144023509,6.3131,158.4,158.34,6.3154]
[1721144023719,1.57849173,158.42,158.36,15.7868]
[1721144023910,6.3134,158.4,158.33,6.4404]
[1721144024116,15.7769,158.46,158.33,22.2299]
[1721144024117,1.57850148,158.39,158.33,22.2299]
[1721144024308,6.3142,158.38,158.33,22.2299]
[1721144024504,6.3135,158.39,158.33,28.5454]
[1721144024718,6.3131,158.4,158.33,22.2299]
[1721144024954,6.312,158.43,158.34,31.5774]
[1721144025108,1.57834839,158.44,158.38,15.7848]
[1721144025819,6.3127,158.42,158.36,6.3146]
[1721144026022,1.5782409,158.41,158.35,15.7876]
[1721144026246,13.74435526,158.45,158.35,15.7876]
[1721144026247,1.57842229,158.44,158.35,15.7876]
[1721144026545,46.57842229,158.44,158.35,15.7876]
[1721144026726,6.3135,158.39,158.35,15.7876]
[1721144027049,46.57842229,158.44,158.35,15.7876]
[1721144027243,62.35792229,158.44,158.33,6.4404]
[1721144027430,6.3139,158.38,158.33,12.7559]
[1721144027744,6.3132,158.4,158.35,22.1024]
[1721144028046,46.57842229,158.44,158.35,15.7877]
[1721144028047,7.89209127,158.39,158.35,15.7877]
[1721144028244,60.7796,158.44,158.33,12.7563]
[1721144028245,7.89256056,158.38,158.33,12.7563]
[1721144028447,60.7796,158.44,158.33,12.7563]
[1721144028448,15.7814,158.42,158.33,6.4404]
[1721144028639,6.3144,158.37,158.33,6.4404]
[1721144028835,22.0577,158.42,158.32,15.2527]
[1721144029143,6.3139,158.38,158.32,15.2527]
[1721144029451,6.3155,158.34,158.32,15.2527]
[1721144029740,15.7836,158.4,158.32,15.2527]
[1721144029958,6.3155,158.34,158.32,15.2527]
[1721144030148,6.3171,158.31,158.26,22.8079]
[1721144030350,6.3166,158.32,158.26,16.4896]
[1721144030524,6.3166,158.32,158.26,22.8079]
[1721144030724,15.7873,158.36,158.26,22.8079]
[1721144030725,47.3527,158.39,158.28,6.3175]
[1721144030924,6.3159,158.33,158.28,6.3176]
[1721144031140,6.3155,158.34,158.28,6.3176]
[1721144031328,34.6,158.37,158.26,16.4896]
[1721144031529,6.318,158.28,158.26,16.4896]
[1721144031842,6.3179,158.28,158.26,16.4896]
[1721144032165,34.6,158.34,158.26,16.4896]
[1721144032347,6.3171,158.3,158.26,16.4896]
[1721144032851,1.57947774,158.32,158.26,16.4896]
[1721144033063,34.6,158.37,158.27,22.1135]
[1721144033064,6.316,158.33,158.27,22.1135]
[1721144033229,6.3169,158.31,158.26,16.4896]
[1721144033424,1.57942672,158.3,158.26,16.4896]
[1721144033632,6.3172,158.3,158.26,16.4896]
[1721144033934,7.8972769,158.29,158.26,16.4896]
[1721144034132,1.57958697,158.28,158.26,16.4896]
[1721144034439,1.57958697,158.32,158.26,16.4896]
[1721144034630,46.57958697,158.32,158.26,16.4896]
[1721144034832,1.57958697,158.32,158.26,32.2861]
[1721144035030,1.57926389,158.36,158.29,6.3174]
[1721144035238,6.3158,158.34,158.28,6.3178]
[1721144035439,6.3158,158.34,158.26,32.2861]
[1721144035440,1.57919359,158.33,158.29,6.3173]
[1721144035634,1.57917654,158.38,158.26,16.4896]
[1721144035933,15.782,158.41,158.29,15.7935]
[1721144035934,7.89324044,158.37,158.29,15.7935]
[1721144036135,1.57894044,158.37,158.3,6.3168]
[1721144036454,1.57895614,158.4,158.3,6.3171]
[1721144036631,1.57895568,158.39,158.32,15.7905]
[1721144037038,1.57895568,158.39,158.29,15.7935]
[1721144037238,1.57895568,158.39,158.3,45.0]
[1721144037434,1.57895568,158.39,158.32,15.7906]
[1721144037640,1.5787166,158.38,158.27,45.0]
[1721144037959,6.3143,158.37,158.32,6.3162]
[1721144038340,7.89344389,158.36,158.29,15.7936]
[1721144038543,1.57890415,158.35,158.3,6.317]
[1721144039047,7.89400415,158.35,158.3,6.317]
[1721144039263,6.3151,158.35,158.3,6.317]
[1721144039760,6.3155,158.34,158.29,22.111]
[1721144039936,6.3142,158.38,158.33,6.3158]
[1721144040134,6.315,158.36,158.31,15.7909]
[1721144040339,1.57887655,158.35,158.31,6.3166]
[1721144040541,7.89397655,158.35,158.28,15.7944]
[1721144040738,6.3151,158.35,158.28,15.7944]
[1721144040942,6.3151,158.35,158.3,6.3169]
[1721144041158,6.3156,158.34,158.28,15.7944]
[1721144041464,6.315,158.36,158.31,6.3166]
[1721144041640,1.57893359,158.38,158.27,45.0]
[1721144041959,1.57869346,158.4,158.3,31.5837]
[1721144042149,1.57848393,158.44,158.31,65.0]
[1721144042353,6.3124,158.42,158.37,6.3142]
[1721144042540,1.57836723,158.41,158.32,22.1743]
[1721144042861,13.74435526,158.45,158.33,15.7896]
[1721144042862,17.358167,158.44,158.33,15.7896]
[1721144043060,15.7816,158.42,158.33,15.7896]
[1721144043261,6.3138,158.39,158.34,6.3153]
[1721144043564,6.3139,158.38,158.33,22.1054]
[1721144043754,6.3135,158.39,158.34,6.3153]
[1721144044065,13.74435526,158.45,158.32,22.1743]
[1721144044066,6.3147,158.36,158.32,22.1743]
[1721144044641,6.3143,158.37,158.32,28.4904]
[1721144044857,6.314,158.38,158.33,6.3159]
[1721144045066,1.57870728,158.4,158.34,6.3154]
[1721144045067,6.3136,158.39,158.34,6.3154]
[1721144045267,6.3136,158.39,158.33,6.3158]
[1721144045268,6.314,158.38,158.33,6.3158]
[1721144045560,6.3152,158.35,158.32,22.1743]
[1721144045768,7.89330643,158.37,158.32,22.1743]
[1721144045953,6.3146,158.37,158.32,22.1743]
[1721144046166,7.89233564,158.39,158.34,6.3155]
[1721144046341,6.3136,158.39,158.34,6.3155]
[1721144047469,15.7799,158.43,158.33,15.7892]
[1721144047669,6.3146,158.37,158.33,15.7892]
[1721144048366,1.5787371,158.42,158.33,15.7892]
[1721144048548,6.3134,158.4,158.35,6.315]
[1721144048744,1.57850797,158.39,158.33,22.1048]
[1721144048942,15.7799,158.43,158.38,6.3136]
[1721144048943,1.57856715,158.43,158.38,6.3136]
[1721144049242,7.89075683,158.42,158.34,15.7883]
[1721144049443,6.3126,158.42,158.37,6.314]
[1721144049846,6.3128,158.41,158.37,6.314]
[1721144050041,6.3128,158.41,158.36,22.1006]
[1721144050244,6.3131,158.4,158.36,15.786]
[1721144050459,1.57829734,158.44,158.34,6.3154]
[1721144050460,1.57832803,158.39,158.34,6.3154]
[1721144050672,1.57832803,158.39,158.32,22.1743]
[1721144050673,6.3147,158.36,158.32,28.4905]
[1721144050871,17.36016175,158.42,158.32,22.1743]
[1721144051044,45.0,158.41,158.32,28.4905]
[1721144051356,6.3147,158.36,158.32,28.4905]
[1721144051550,1.57873194,158.4,158.34,6.3154]
[1721144051765,1.57873194,158.4,158.33,15.7896]
[1721144051967,1.57850419,158.39,158.32,22.1743]
[1721144052165,1.57870579,158.41,158.32,22.1743]
[1721144052367,6.3139,158.39,158.32,37.9644]
[1721144052567,6.3139,158.39,158.34,6.3154]
[1721144052870,6.314,158.38,158.33,6.3156]
[1721144053066,6.314,158.38,158.32,37.9644]
[1721144053067,1.57871284,158.41,158.32,23.43711086]
[1721144053379,6.3124,158.42,158.37,6.3139]
[1721144053550,6.3124,158.42,158.38,6.3138]
[1721144053746,1.57829335,158.44,158.38,15.7844]
[1721144053951,21.63380847,158.45,158.4,6.3127]
[1721144054173,6.312,158.43,158.39,6.3134]
[1721144054382,15.32240847,158.45,158.37,6.3142]
[1721144054383,1.57804698,158.42,158.37,6.3142]
[1721144054561,6.3124,158.42,158.37,6.3142]
[1721144054866,6.312,158.43,158.39,6.3135]
[1721144055065,6.312,158.43,158.37,15.7853]
[1721144055268,13.74435526,158.45,158.37,22.0996]
[1721144055269,6.3127,158.41,158.37,22.0996]
[1721144055670,1.57831612,158.4,158.33,6.3155]
[1721144055853,7.89251284,158.39,158.33,6.3155]
[1721144056054,6.3154,158.35,158.32,22.1743]
[1721144056264,15.7828,158.4,158.32,22.1743]
[1721144056470,6.3142,158.38,158.32,22.1743]
[1721144056791,1.57856002,158.42,158.38,15.7846]
[1721144056956,13.74435526,158.45,158.38,15.7846]
[1721144056957,7.88970171,158.44,158.38,15.7846]
[1721144057148,1.57820171,158.44,158.4,6.3128]
[1721144057360,7.88980171,158.44,158.39,6.3134]
[1721144057648,7.88980171,158.44,158.38,15.7846]
[1721144057649,1.57820171,158.44,158.38,15.7846]
[1721144057972,1.57820171,158.44,158.35,15.7874]
[1721144058153,1.57820171,158.44,158.32,22.1743]
[1721144058154,6.314,158.38,158.33,6.3158]
[1721144058358,1.57820171,158.44,158.32,22.1743]
[1721144058359,6.3148,158.36,158.32,22.1743]
[1721144058551,6.3147,158.36,158.32,22.1743]
[1721144058871,1.57881233,158.35,158.3,15.7922]
[1721144059070,15.7842,158.39,158.28,6.5918]
[1721144059071,6.3168,158.31,158.28,15.1982]
[1721144059574,6.3164,158.32,158.28,15.1982]
[1721144059778,1.5792637,158.31,158.28,21.5161]
[1721144060076,60.3868,158.37,158.28,15.1982]
[1721144060077,1.579261,158.32,158.28,15.1982]
[1721144060271,6.3158,158.34,158.28,15.1982]
[1721144060457,1.57926934,158.33,158.29,6.3173]
[1721144060773,6.3158,158.34,158.29,6.3173]
[1721144060774,6.3155,158.34,158.29,15.7932]
[1721144061574,6.3152,158.35,158.3,6.3171]
[1721144061774,1.57885784,158.39,158.29,15.7932]
[1721144061991,6.3152,158.35,158.31,15.7912]
[1721144062352,1.57896783,158.38,158.28,15.1982]
[1721144062353,6.3155,158.34,158.29,6.3173]
[1721144062549,6.3151,158.35,158.3,6.3169]
[1721144062777,7.89448996,158.34,158.29,22.1103]
[1721144063077,6.3156,158.34,158.29,22.1103]
[1721144063252,6.3152,158.35,158.3,6.3169]
[1721144063572,6.3156,158.34,158.3,6.3169]
[1721144064074,1.57897167,158.37,158.3,6.3169]
[1721144064282,6.3154,158.35,158.3,6.3169]
[1721144064468,1.57897025,158.34,158.3,6.3169]
[1721144064658,6.3167,158.31,158.28,15.1982]
[1721144064862,1.57897025,158.34,158.28,15.1982]
[1721144065084,1.57897025,158.34,158.26,15.7962]
[1721144065085,6.3168,158.31,158.26,22.1148]
[1721144065266,6.3167,158.31,158.26,22.1148]
[1721144065767,6.3164,158.32,158.27,6.3181]
[1721144066072,1.57938956,158.34,158.24,16.3289]
[1721144066073,6.3186,158.27,158.24,16.3289]
[1721144066279,1.57925141,158.31,158.24,22.6481]
[1721144066452,6.3178,158.29,158.24,22.6481]
[1721144066652,6.3179,158.28,158.24,22.6481]
[1721144066855,7.89735052,158.28,158.24,22.6481]
[1721144067080,6.318,158.28,158.24,16.3289]
[1721144067262,7.89797812,158.27,158.24,16.3289]
[1721144067463,1.57977018,158.31,158.24,16.3289]
[1721144067661,6.3182,158.28,158.24,16.3289]
[1721144067870,7.89812215,158.27,158.24,16.3289]
[1721144068077,6.3184,158.27,158.24,16.3289]
[1721144068280,1.57968878,158.3,158.22,15.8001]
[1721144068583,6.3182,158.28,158.23,6.3196]
[1721144068762,6.3182,158.28,158.24,6.3194]
[1721144068964,7.89732246,158.29,158.24,6.3194]
[1721144069265,6.3176,158.29,158.24,6.3193]
[1721144069475,6.3179,158.28,158.24,6.3193]
[1721144069986,1.57967836,158.32,158.24,15.7982]
[1721144070290,6.3172,158.3,158.25,6.3187]
[1721144070498,1.57967836,158.32,158.26,15.796]
[1721144070655,1.57916491,158.35,158.31,6.3166]
[1721144070860,6.3147,158.36,158.31,6.3166]
[1721144071087,6.3378,158.39,158.31,6.3166]
[1721144071088,7.89409434,158.35,158.31,6.3166]
[1721144071292,1.57903926,158.34,158.29,6.3174]
[1721144071492,6.3153,158.35,158.3,6.317]
[1721144071878,1.5790361,158.37,158.33,6.3158]
[1721144072173,1.57897488,158.38,158.33,7.57877408]
[1721144072387,1.57873986,158.4,158.33,7.57877408]
[1721144072697,1.57862584,158.4,158.32,15.7907]
[1721144072990,1.57848626,158.43,158.37,15.7854]
[1721144073199,7.89074194,158.42,158.37,22.0994]
[1721144073400,6.3124,158.42,158.37,22.0994]
[1721144073602,6.312,158.43,158.38,6.3138]
[1721144073781,6.312,158.43,158.37,22.0996]
[1721144073984,6.312,158.43,158.37,15.7854]
[1721144074178,6.312,158.43,158.38,6.3138]
[1721144074501,6.3123,158.42,158.37,22.0996]
[1721144074797,1.5782427,158.45,158.37,15.7854]
[1721144074985,6.3123,158.42,158.37,22.0996]
[1721144075189,1.5782427,158.45,158.37,15.7854]
[1721144075790,6.3127,158.41,158.37,15.7854]
[1721144076192,6.3131,158.4,158.36,6.3144]
[1721144076472,1.57840446,158.44,158.36,15.7862]
[1721144076671,1.57815758,158.45,158.41,6.3126]
[1721144076882,24.49964211,158.46,158.41,6.3126]
[1721144077100,16.61069835,158.46,158.42,1.26077145]
[1721144077276,16.61069835,158.46,158.42,6.3122]
[1721144077671,6.3107,158.46,158.41,15.7812]
[1721144077880,7.88832156,158.47,158.41,15.7812]
[1721144078296,6.3107,158.46,158.41,15.7812]
[1721144078486,6.3111,158.45,158.41,22.0938]
[1721144078801,6.3103,158.47,158.41,15.7812]
[1721144079002,8.7350976,158.48,158.43,6.3118]
[1721144079203,6.3103,158.47,158.42,6.3122]
[1721144079377,6.3107,158.46,158.41,22.0938]
[1721144079715,1.57779187,158.45,158.4,15.3705]
[1721144079892,6.3116,158.44,158.4,15.3705]
[1721144080074,2.42513319,158.48,158.4,21.6835]
[1721144080075,6.3112,158.45,158.4,21.6835]
[1721144080677,6.3116,158.44,158.4,15.3705]
[1721144081074,7.8899666,158.43,158.4,15.3705]
[1721144081273,7.89082246,158.42,158.37,6.1062]
[1721144081485,6.312,158.43,158.38,6.3139]
[1721144081683,6.3123,158.42,158.37,28.2057]
[1721144081885,1.57821772,158.45,158.37,21.8915]
[1721144082081,1.57821772,158.45,158.38,6.3138]
[1721144082299,6.3119,158.43,158.38,6.3138]
[1721144082507,6.3123,158.42,158.37,28.2057]
[1721144082681,6.3128,158.41,158.36,6.3144]
[1721144083095,6.312,158.43,158.38,6.3138]
[1721144083473,6.312,158.43,158.39,6.3134]
[1721144083673,7.88964471,158.44,158.4,6.313]
[1721144083981,6.311,158.46,158.41,7.50354097]
[1721144084308,6.311,158.46,158.42,1.19116577]
[1721144084603,6.3107,158.46,158.43,1.19109058]
[1721144085180,6.3104,158.47,158.43,1.19109058]
[1721144085805,6.3108,158.46,158.41,6.3126]
[1721144086100,6.3112,158.45,158.41,6.3126]
[1721144086305,2.42479144,158.48,158.4,15.7822]
[1721144086506,2.42479144,158.48,158.41,6.3124]
[1721144086507,6.3107,158.46,158.41,6.3124]
[1721144086702,8.73499144,158.48,158.43,6.3116]
[1721144086909,8.73499144,158.48,158.43,21.9715]
[1721144087113,0.8470737,158.48,158.44,6.3114]
[1721144087291,0.8470737,158.48,158.45,1.26200216]
[1721144087608,7.1570737,158.48,158.44,6.3114]
[1721144087786,6.3104,158.47,158.43,15.6599]
[1721144088892,7.1570737,158.48,158.43,21.9718]
[1721144089208,0.8470737,158.48,158.43,15.6599]
[1721144089418,0.8470737,158.48,158.45,6.3111]
[1721144089597,0.8470737,158.48,158.44,22.0895]
[1721144089784,7.1569737,158.48,158.44,22.0895]
[1721144089985,7.1569737,158.48,158.44,15.7781]
[1721144090193,7.1569737,158.48,158.44,22.0895]
[1721144090388,0.8470737,158.48,158.44,22.0895]
[1721144090593,0.8470737,158.48,158.43,21.9717]
[1721144090793,0.8470737,158.48,158.44,6.3112]
[1721144091513,0.8470737,158.48,158.45,6.3111]
[1721144091814,0.8470737,158.48,158.44,6.3114]
[1721144092013,7.1570737,158.48,158.43,31.4391]
[1721144092218,0.8470737,158.48,158.45,6.311]
[1721144092419,0.8470737,158.48,158.47,6.3103]
[1721144093301,71.75786614,158.62,158.51,15.7715]
[1721144093511,1.5768266,158.61,158.53,6.3079]
[1721144093693,1.5768266,158.61,158.51,15.7715]
[1721144093694,1.57671556,158.6,158.51,37.3687]
[1721144094029,6.3071,158.55,158.51,37.3687]
[1721144094202,6.3063,158.57,158.52,6.308]
[1721144094395,6.3068,158.56,158.51,37.3687]
[1721144094904,6.3072,158.55,158.51,31.0601]
[1721144095106,6.3065,158.57,158.51,31.0601]
[1721144095418,6.3072,158.55,158.51,37.3687]
[1721144095615,1.57695812,158.58,158.51,15.2886]
[1721144095814,1.57694055,158.57,158.51,15.2886]
[1721144096624,6.3076,158.54,158.51,15.2886]
[1721144096804,1.57694055,158.57,158.49,12.8113]
[1721144097004,6.3075,158.55,158.5,6.309]
[1721144097199,6.3076,158.54,158.49,12.8113]
[1721144097397,6.308,158.53,158.49,12.8113]
[1721144097600,6.3083,158.52,158.49,6.5019]
[1721144098009,1.57715495,158.55,158.49,6.5019]
[1721144098214,6.3068,158.56,158.5,16.72783263]
[1721144098790,6.3068,158.56,158.51,6.3086]
[1721144099325,1.5769247,158.55,158.51,6.3086]
[1721144099495,6.3072,158.55,158.51,6.3086]
[1721144099698,1.57692639,158.58,158.49,6.5019]
[1721144099910,6.3072,158.55,158.49,6.5019]
[1721144100324,6.3068,158.56,158.49,22.2751]
[1721144100625,7.88412449,158.55,158.51,6.3086]
[1721144100803,64.34466377,158.62,158.51,6.3086]
[1721144100804,6.3067,158.57,158.51,15.7715]
[1721144101002,6.3066,158.57,158.52,6.308]
[1721144101427,1.57669633,158.56,158.51,15.7715]
[1721144101599,6.308,158.53,158.49,12.8113]
[1721144101809,6.308,158.53,158.49,6.3094]
[1721144102200,1.57702707,158.57,158.5,15.7723]
[1721144102496,6.306,158.58,158.54,6.3074]
[1721144102696,1.57661889,158.57,158.52,15.7705]
[1721144102897,1.57680501,158.6,158.52,15.7705]
[1721144103319,1.57680501,158.6,158.52,22.0788]
[1721144103523,6.307,158.56,158.52,15.7705]
[1721144104028,6.3075,158.54,158.49,22.0824]
[1721144104311,6.306,158.58,158.54,6.3072]
[1721144104497,6.306,158.58,158.47,47.849]
[1721144104498,6.3066,158.57,158.53,15.7694]
[1721144104921,6.3068,158.56,158.53,15.7694]
[1721144105230,6.3068,158.56,158.51,6.3087]
[1721144105397,6.3064,158.57,158.5,15.7722]
[1721144105601,6.3064,158.57,158.52,15.7704]
[1721144105908,6.3061,158.58,158.53,6.3076]
[1721144106307,6.3072,158.55,158.52,15.7704]
[1721144106511,6.3072,158.55,158.51,6.3086]
[1721144106721,1.57684321,158.54,158.47,16.2983]
[1721144106927,1.57684321,158.54,158.47,22.6084]
[1721144106928,30.62,158.52,158.47,22.6084]
[1721144107220,36.9283,158.52,158.47,16.2983]